{"text_format":"2","workbook":"xlsx","n_sheets":18,"sheets":["Instructions","RA1- Existing Rehab South","RA2-OB Dumps and Topsoil South","RA3-Surface Water Mgmt South","RA4-Infrastructure South","RA5- Existing Rehab North","RA6-OB Dumps and Topsoil North","RA7-Surface Water Mgmt North","RA8-Infrastructure North","RA9-Riparian Veg Bullock Ck","RA10-Riparian Veg Spade Ck","IA1 Broadmeadow Voids","IA2 Wallanbah Void","IA3 Wallanbah Void Lowwall","IA4 Bullock Ck Void","IA5 Plumtree Void","Rehabilitation Area Milestones","COD Improvement Area Milestones"],"not_rendered":{"charts":0,"images":0,"macros":0,"external_links":0,"defined_names":2,"comments":0,"pivot_tables":0},"unopened":[],"bounds":{"document_bytes":16777216,"sheet_cells":100000,"run_cost":"one","rows_first":2000,"rows_last":500,"rows_between":2000,"halvings":0,"cell_chars":16384,"cell_head_chars":4096},"cells_cut":0,"cells_raw":0,"read":"whole","date_system":"1900"}

{"sheet":"Instructions","index":0,"n_rows":0,"n_cols":0,"rows_kept":0,"cut":false,"hidden":false,"merged":[]}

{"sheet":"RA1- Existing Rehab South","index":1,"n_rows":22,"n_cols":9,"rows_kept":22,"cut":false,"hidden":false,"merged":[[0,0,0,10],[2,4,2,10],[3,4,3,10],[4,4,4,10],[5,4,5,10],[4,0,4,3],[5,0,5,3],[1,0,1,3],[1,4,1,10],[2,0,2,3],[3,0,3,3],[9,1,9,10],[21,0,21,10],[18,0,18,10],[19,0,19,10],[20,0,20,10]]}
["Post-mining land uses (PMLU)"]
["Rehabilitation area",null,null,null,"RA1"]
["Relevant activities",null,null,null,"Existing Rehabilitation South"]
["Total rehabilitation area size (ha)",null,null,null,694.7]
["Commencement of first milestone:\nRM8",null,null,null,"2022-06-10"]
["PMLU",null,null,null,"Grazing with Areas of Bushland Habitat"]
["Date area is available","2022-06-10"]
["Cumulative area available (ha)",{"$f":"E4","v":694.7}]
["Milestone completed by","2025-12-10","2042-12-10"]
["Milestone Reference","Cumulative area achieved (ha)"]
["RM8",694.7,null,null,null,{"$f":"Table3[[#This Row],[Column5]]","v":0},{"$f":"Table3[[#This Row],[Column6]]","v":0},{"$f":"Table3[[#This Row],[Column7]]","v":0},{"$f":"Table3[[#This Row],[Column8]]","v":0}]
["RM10",null,694.7,null,null,{"$f":"Table3[[#This Row],[Column5]]","v":0},{"$f":"Table3[[#This Row],[Column6]]","v":0},{"$f":"Table3[[#This Row],[Column7]]","v":0},{"$f":"Table3[[#This Row],[Column8]]","v":0}]
[]
[]
[]
[]
[]
[]
["1) Insert new columns to the yellow table to include further rehabilitation milestone dates."]
["2) Insert new columns to the blue table to match rehabilitation milestone dates."]
["3) Insert new rows to the blue table to include additional rehabilitation milestone references."]
["4) Insert the relevant number in the \"Milestone reference\" column (i.e. RM1)."]

{"sheet":"RA2-OB Dumps and Topsoil South","index":2,"n_rows":23,"n_cols":12,"rows_kept":23,"cut":false,"hidden":false,"merged":[[3,0,3,3],[3,4,3,10],[0,0,0,10],[1,0,1,3],[1,4,1,10],[2,0,2,3],[2,4,2,10],[20,0,20,10],[21,0,21,10],[22,0,22,10],[4,0,4,3],[4,4,4,10],[5,0,5,3],[5,4,5,10],[19,0,19,10],[9,1,9,11]]}
["Post-mining land uses (PMLU)"]
["Rehabilitation area",null,null,null,"RA2"]
["Relevant activities",null,null,null,"Overburden Dumps and Topsoil Stockpiles South"]
["Total rehabilitation area size (ha)",null,null,null,95.6]
["Commencement of first milestone:\nRM1",null,null,null,"2022-06-10"]
["PMLU",null,null,null,"Grazing with Areas of Bushland Habitat"]
["Date area is available","2022-12-10"]
["Cumulative area available (ha)",{"$f":"E4","v":95.6}]
["Milestone completed by","2022-12-10","2024-12-10","2025-12-10","2026-12-10","2027-12-10","2028-12-10","2029-12-10","2030-12-10","2031-12-10","2032-12-10","2042-12-10"]
["Milestone Reference","Cumulative area achieved (ha)"]
["RM1",95.6]
["RM2",95.6]
["RM3",null,51.5,63.8,76.2,88.5,95.6]
["RM4",null,null,51.5,63.8,76.2,88.5,95.6]
["RM5",null,null,51.5,63.8,76.2,88.5,95.6]
["RM8",{"$nulls":5},51.5,63.8,76.2,88.5,95.6]
["RM10",{"$nulls":10},95.6]
[]
[]
["1) Insert new columns to the yellow table to include further rehabilitation milestone dates."]
["2) Insert new columns to the blue table to match rehabilitation milestone dates."]
["3) Insert new rows to the blue table to include additional rehabilitation milestone references."]
["4) Insert the relevant number in the \"Milestone reference\" column (i.e. RM1)."]

{"sheet":"RA3-Surface Water Mgmt South","index":3,"n_rows":25,"n_cols":11,"rows_kept":25,"cut":false,"hidden":false,"merged":[[3,0,3,3],[3,4,3,10],[0,0,0,10],[1,0,1,3],[1,4,1,10],[2,0,2,3],[2,4,2,10],[19,0,19,10],[20,0,20,10],[21,0,21,10],[4,0,4,3],[4,4,4,10],[5,0,5,3],[5,4,5,10],[9,1,9,10],[18,0,18,10]]}
["Post-mining land uses (PMLU)"]
["Rehabilitation area",null,null,null,"RA3"]
["Relevant activities",null,null,null,"Surface Water Management Infrastructure South"]
["Total rehabilitation area size (ha)",null,null,null,40.799999999999997]
["Commencement of first milestone:\nRM1",null,null,null,"2022-06-10"]
["PMLU",null,null,null,"Grazing with Areas of Bushland Habitat"]
["Date area is available","2022-06-10"]
["Cumulative area available (ha)",{"$f":"E4","v":40.799999999999997}]
["Milestone completed by","2024-12-10","2025-12-10","2026-12-10","2027-12-10","2028-12-10","2029-12-10","2030-12-10","2031-12-10","2032-12-10","2042-12-10"]
["Milestone Reference","Cumulative area achieved (ha)"]
["RM1",15.5,15.5,15.5,15.5,40.799999999999997]
["RM3",15.5,15.5,15.5,15.5,40.799999999999997]
["RM4",null,15.5,15.5,15.5,15.5,40.799999999999997]
["RM5",null,15.5,15.5,15.5,15.5,40.799999999999997]
["RM8",{"$nulls":4},15.5,15.5,15.5,15.5,40.799999999999997]
["RM10",{"$nulls":9},40.799999999999997]
[]
[]
["1) Insert new columns to the yellow table to include further rehabilitation milestone dates."]
["2) Insert new columns to the blue table to match rehabilitation milestone dates."]
["3) Insert new rows to the blue table to include additional rehabilitation milestone references."]
["4) Insert the relevant number in the \"Milestone reference\" column (i.e. RM1)."]
[]
[]
[null,{"$f":"IF(SUM(B8,B11:B19)=SUM(A8,A11:A19),0,1)","v":1},{"$f":"IF(SUM(C8,C11:C19)=SUM(B8,B11:B19),0,1)","v":1},0,0,1,1,1,0,1,0]

{"sheet":"RA4-Infrastructure South","index":4,"n_rows":25,"n_cols":11,"rows_kept":25,"cut":false,"hidden":false,"merged":[[3,0,3,3],[3,4,3,10],[0,0,0,10],[1,0,1,3],[1,4,1,10],[2,0,2,3],[2,4,2,10],[20,0,20,10],[21,0,21,10],[22,0,22,10],[4,0,4,3],[4,4,4,10],[5,0,5,3],[5,4,5,10],[9,1,9,10],[19,0,19,10]]}
["Post-mining land uses (PMLU)"]
["Rehabilitation area",null,null,null,"RA4"]
["Relevant activities",null,null,null,"Infrastructure South"]
["Total rehabilitation area size (ha)",null,null,null,21.7]
["Commencement of first milestone:\nRM1",null,null,null,"2028-12-10"]
["PMLU",null,null,null,"Grazing with Areas of Bushland Habitat"]
["Date area is available","2028-12-10"]
["Cumulative area available (ha)",{"$f":"E4","v":21.7}]
["Milestone completed by","2029-12-10","2030-12-10","2031-12-10","2034-12-10","2042-12-10"]
["Milestone Reference","Cumulative area achieved (ha)"]
["RM1",21.7]
["RM2",21.7]
["RM3",null,21.7]
["RM4",null,null,21.7]
["RM5",null,null,21.7]
["RM8",null,null,null,21.7]
["RM10",{"$nulls":4},21.7]
[]
[]
["1) Insert new columns to the yellow table to include further rehabilitation milestone dates."]
["2) Insert new columns to the blue table to match rehabilitation milestone dates."]
["3) Insert new rows to the blue table to include additional rehabilitation milestone references."]
["4) Insert the relevant number in the \"Milestone reference\" column (i.e. RM1)."]
[]
[null,{"$f":"IF(SUM(B8,B11:B19)=SUM(A8,A11:A19),0,1)","v":1},{"$f":"IF(SUM(C8,C11:C19)=SUM(B8,B11:B19),0,1)","v":1},1,1,{"$f":"IF(SUM(F8,F11:F19)=SUM(E8,E11:E19),0,1)","v":0},1,0,0,0,0]

{"sheet":"RA5- Existing Rehab North","index":5,"n_rows":24,"n_cols":11,"rows_kept":24,"cut":false,"hidden":false,"merged":[[3,0,3,3],[3,4,3,10],[0,0,0,10],[1,0,1,3],[1,4,1,10],[2,0,2,3],[2,4,2,10],[19,0,19,10],[20,0,20,10],[21,0,21,10],[4,0,4,3],[4,4,4,10],[5,0,5,3],[5,4,5,10],[9,1,9,10],[18,0,18,10]]}
["Post-mining land uses (PMLU)"]
["Rehabilitation area",null,null,null,"RA5"]
["Relevant activities",null,null,null,"Existing Rehabilitation North"]
["Total rehabilitation area size (ha)",null,null,null,269.60000000000002]
["Commencement of first milestone:\nRM8",null,null,null,"2022-06-10"]
["PMLU",null,null,null,"Grazing with Areas of Bushland Habitat"]
["Date area is available","2022-06-10"]
["Cumulative area available (ha)",{"$f":"E4","v":269.60000000000002}]
["Milestone completed by","2025-12-10","2042-12-10"]
["Milestone Reference","Cumulative area achieved (ha)"]
["RM8",269.60000000000002,null,{"$f":"Table35791117[[#This Row],[Column3]]","v":0}]
["RM10",null,269.60000000000002,{"$f":"Table35791117[[#This Row],[Column3]]","v":269.60000000000002}]
[]
[]
[]
[]
[]
[]
["1) Insert new columns to the yellow table to include further rehabilitation milestone dates."]
["2) Insert new columns to the blue table to match rehabilitation milestone dates."]
["3) Insert new rows to the blue table to include additional rehabilitation milestone references."]
["4) Insert the relevant number in the \"Milestone reference\" column (i.e. RM1)."]
[]
[null,{"$f":"IF(SUM(B8,B11:B18)=SUM(A8,A11:A18),0,1)","v":1},{"$f":"IF(SUM(C8,C11:C18)=SUM(B8,B11:B18),0,1)","v":1},0,1,0,0,0,0,0,0]

{"sheet":"RA6-OB Dumps and Topsoil North","index":6,"n_rows":25,"n_cols":12,"rows_kept":25,"cut":false,"hidden":false,"merged":[[3,0,3,3],[3,4,3,10],[0,0,0,10],[1,0,1,3],[1,4,1,10],[2,0,2,3],[2,4,2,10],[20,0,20,10],[21,0,21,10],[22,0,22,10],[4,0,4,3],[4,4,4,10],[5,0,5,3],[5,4,5,10],[9,1,9,10],[19,0,19,10]]}
["Post-mining land uses (PMLU)"]
["Rehabilitation area",null,null,null,"RA6"]
["Relevant activities",null,null,null,"Overburden Dumps and Topsoil Stockpiles North"]
["Total rehabilitation area size (ha)",null,null,null,259.5]
["Commencement of first milestone:\nRM1",null,null,null,"2022-06-10"]
["PMLU",null,null,null,"Grazing with Areas of Bushland Habitat"]
["Date area is available","2022-12-10"]
["Cumulative area available (ha)",{"$f":"E4","v":259.5}]
["Milestone completed by","2022-12-10","2023-12-10","2024-12-10","2025-12-10","2026-12-10","2027-12-10","2028-12-10","2042-12-10",null,null,"2042-12-10"]
["Milestone Reference","Cumulative area achieved (ha)"]
["RM1",259.5]
["RM2",259.5]
["RM3",82.9,207.2,259.5]
["RM4",null,82.9,207.2,259.5]
["RM5",null,82.9,207.2,259.5]
["RM8",{"$nulls":4},82.9,207.2,259.5]
["RM10",{"$nulls":7},259.5,null,null,95.7]
[]
[]
["1) Insert new columns to the yellow table to include further rehabilitation milestone dates."]
["2) Insert new columns to the blue table to match rehabilitation milestone dates."]
["3) Insert new rows to the blue table to include additional rehabilitation milestone references."]
["4) Insert the relevant number in the \"Milestone reference\" column (i.e. RM1)."]
[]
[null,{"$f":"IF(SUM(B8,B11:B19)=SUM(A8,A11:A19),0,1)","v":1},1,1,1,1,1,1,0,1,0]

{"sheet":"RA7-Surface Water Mgmt North","index":7,"n_rows":25,"n_cols":11,"rows_kept":25,"cut":false,"hidden":false,"merged":[[19,0,19,10],[20,0,20,10],[21,0,21,10],[4,0,4,3],[4,4,4,10],[5,0,5,3],[5,4,5,10],[9,1,9,10],[18,0,18,10],[3,0,3,3],[3,4,3,10],[0,0,0,10],[1,0,1,3],[1,4,1,10],[2,0,2,3],[2,4,2,10]]}
["Post-mining land uses (PMLU)"]
["Rehabilitation area",null,null,null,"RA7"]
["Relevant activities",null,null,null,"Surface Water Management Infrastructure North"]
["Total rehabilitation area size (ha)",null,null,null,43.1]
["Commencement of first milestone:\nRM1",null,null,null,"2022-06-10"]
["PMLU",null,null,null,"Grazing with Areas of Bushland Habitat"]
["Date area is available","2022-06-10"]
["Cumulative area available (ha)",{"$f":"E4","v":43.1}]
["Milestone completed by","2023-12-10","2024-12-10","2025-12-10","2027-12-10","2028-12-10","2042-12-10"]
["Milestone Reference","Cumulative area achieved (ha)"]
["RM1",18.802122400000002,43.050907100000003]
["RM3",18.802122400000002,43.050907100000003]
["RM4",null,18.802122400000002,43.050907100000003]
["RM5",null,18.802122400000002,43.050907100000003]
["RM8",null,null,null,18.802122400000002,43.050907100000003]
["RM10",{"$nulls":5},43.1]
[]
[]
["1) Insert new columns to the yellow table to include further rehabilitation milestone dates."]
["2) Insert new columns to the blue table to match rehabilitation milestone dates."]
["3) Insert new rows to the blue table to include additional rehabilitation milestone references."]
["4) Insert the relevant number in the \"Milestone reference\" column (i.e. RM1)."]
[]
[]
[null,{"$f":"IF(SUM(B8,B11:B19)=SUM(A8,A11:A19),0,1)","v":1},{"$f":"IF(SUM(C8,C11:C19)=SUM(B8,B11:B19),0,1)","v":1},1,1,1,1,1,0,0,0]

{"sheet":"RA8-Infrastructure North","index":8,"n_rows":26,"n_cols":40,"rows_kept":26,"cut":false,"hidden":false,"merged":[[3,0,3,3],[3,4,3,10],[0,0,0,10],[1,0,1,3],[1,4,1,10],[2,0,2,3],[2,4,2,10],[21,0,21,10],[22,0,22,10],[23,0,23,10],[4,0,4,3],[4,4,4,10],[5,0,5,3],[5,4,5,10],[9,1,9,10],[20,0,20,10]]}
["Post-mining land uses (PMLU)"]
["Rehabilitation area",null,null,null,"RA8"]
["Relevant activities",null,null,null,"Infrastructure North"]
["Total rehabilitation area size (ha)",null,null,null,25]
["Commencement of first milestone:\nRM1",null,null,null,"2028-12-10"]
["PMLU",null,null,null,"Grazing with Areas of Bushland Habitat"]
["Date area is available","2028-12-10"]
["Cumulative area available (ha)",{"$f":"E4","v":25}]
["Milestone completed by","2029-12-10","2030-12-10","2031-12-10","2034-12-10","2042-12-10"]
["Milestone Reference","Cumulative area achieved (ha)"]
["RM1",25]
["RM2",25]
["RM3",null,25]
["RM4",null,null,25]
["RM5",null,null,25]
["RM8",null,null,null,25]
["RM10",{"$nulls":4},25]
[]
[]
[]
["1) Insert new columns to the yellow table to include further rehabilitation milestone dates."]
["2) Insert new columns to the blue table to match rehabilitation milestone dates."]
["3) Insert new rows to the blue table to include additional rehabilitation milestone references."]
["4) Insert the relevant number in the \"Milestone reference\" column (i.e. RM1)."]
[]
[null,{"$f":"IF(SUM(B8,B11:B18)=SUM(A8,A11:A18),0,1)","v":1},{"$f":"IF(SUM(C8,C11:C18)=SUM(B8,B11:B18),0,1)","v":1},1,1,0,1,0,0,0,0,0,0,0,0,0,0,0,0,0,0,0,0,0,0,0,0,0,0,0,0,0,0,0,0,0,0,0,0,0]

{"sheet":"RA9-Riparian Veg Bullock Ck","index":9,"n_rows":26,"n_cols":40,"rows_kept":26,"cut":false,"hidden":false,"merged":[[3,0,3,3],[3,4,3,10],[0,0,0,10],[1,0,1,3],[1,4,1,10],[2,0,2,3],[2,4,2,10],[21,0,21,10],[22,0,22,10],[23,0,23,10],[4,0,4,3],[4,4,4,10],[5,0,5,3],[5,4,5,10],[9,1,9,10],[20,0,20,10]]}
["Post-mining land uses (PMLU)"]
["Rehabilitation area",null,null,null,"RA9"]
["Relevant activities",null,null,null,"Completed Riparian Vegetation Bullock Ck"]
["Total rehabilitation area size (ha)",null,null,null,10.6]
["Commencement of first milestone:\nRM9",null,null,null,"2022-06-10"]
["PMLU",null,null,null,"Self Sustaining Native Vegetation"]
["Date area is available","2022-06-10"]
["Cumulative area available (ha)",{"$f":"E4","v":10.6}]
["Milestone completed by","2032-12-10","2042-12-10"]
["Milestone Reference","."]
["RM9",10.6]
["RM10",null,10.6]
{"$rows_empty":8}
["1) Insert new columns to the yellow table to include further rehabilitation milestone dates."]
["2) Insert new columns to the blue table to match rehabilitation milestone dates."]
["3) Insert new rows to the blue table to include additional rehabilitation milestone references."]
["4) Insert the relevant number in the \"Milestone reference\" column (i.e. RM1)."]
[]
[null,{"$f":"IF(SUM(B8,B11:B18)=SUM(A8,A11:A18),0,1)","v":1},{"$f":"IF(SUM(C8,C11:C18)=SUM(B8,B11:B18),0,1)","v":1},1,0,0,0,0,0,0,0,0,0,0,0,0,0,0,0,0,0,0,0,0,0,0,0,0,0,0,0,0,0,0,0,0,0,0,0,0]

{"sheet":"RA10-Riparian Veg Spade Ck","index":10,"n_rows":27,"n_cols":40,"rows_kept":27,"cut":false,"hidden":false,"merged":[[3,0,3,3],[3,4,3,10],[0,0,0,10],[1,0,1,3],[1,4,1,10],[2,0,2,3],[2,4,2,10],[22,0,22,10],[23,0,23,10],[24,0,24,10],[4,0,4,3],[4,4,4,10],[5,0,5,3],[5,4,5,10],[9,1,9,10],[21,0,21,10]]}
["Post-mining land uses (PMLU)"]
["Rehabilitation area",null,null,null,"RA10"]
["Relevant activities",null,null,null,"Riparian Vegetation Spade Ck"]
["Total rehabilitation area size (ha)",null,null,null,12.6]
["Commencement of first milestone:\nRM3",null,null,null,"2023-12-10"]
["PMLU",null,null,null,"Self Sustaining Native Vegetation"]
["Date area is available","2023-12-10"]
["Cumulative area available (ha)",{"$f":"E4","v":12.6}]
["Milestone completed by","2024-12-10","2028-12-10","2042-12-11"]
["Milestone Reference","Cumulative area achieved (ha)"]
["RM3",12.6]
["RM4",12.6]
["RM6",12.6]
["RM9",null,12.6]
["RM10",null,null,12.6]
[]
[]
[]
[]
[]
[]
["1) Insert new columns to the yellow table to include further rehabilitation milestone dates."]
["2) Insert new columns to the blue table to match rehabilitation milestone dates."]
["3) Insert new rows to the blue table to include additional rehabilitation milestone references."]
["4) Insert the relevant number in the \"Milestone reference\" column (i.e. RM1)."]
[]
[null,{"$f":"IF(SUM(B8,B11:B19)=SUM(A8,A11:A19),0,1)","v":1},{"$f":"IF(SUM(C8,C11:C19)=SUM(B8,B11:B19),0,1)","v":1},0,1,0,0,0,0,0,0,0,0,0,0,0,0,0,0,0,0,0,0,0,0,0,0,0,0,0,0,0,0,0,0,0,0,0,0,0]

{"sheet":"IA1 Broadmeadow Voids","index":11,"n_rows":27,"n_cols":29,"rows_kept":27,"cut":false,"hidden":false,"merged":[[3,0,3,3],[3,4,3,10],[0,0,0,10],[1,0,1,3],[1,4,1,10],[2,0,2,3],[2,4,2,10],[19,0,19,10],[20,0,20,10],[21,0,21,10],[4,0,4,3],[4,4,4,10],[5,0,5,3],[5,4,5,10],[9,1,9,10],[18,0,18,10]]}
["Non-use management area (NUMA)"]
["Improvement area",null,null,null,"IA1"]
["Relevant activities",null,null,null,"Broadmeadow Voids"]
["Total size (ha)",null,null,null,55.9]
["Commencement of first milestone: \nMM1",null,null,null,"2022-06-10"]
["NUMA",null,null,null,"Non Use Management Area associated with Pit Void"]
["Date area is available","2022-06-10"]
["Cumulative area available (ha)",{"$f":"E4","v":55.9}]
["Milestone completed by","2025-12-10","2042-12-10"]
["Milestone Reference","Cumulative area achieved (ha)"]
["MM1",55.9]
["MM2",55.9]
["MM3",null,55.9]
[]
[]
[]
[]
[]
["1) Insert new columns to the yellow table to include further management milestone dates."]
["2) Insert new columns to the blue table to match management milestone dates."]
["3) Insert new rows to the blue table to include additional management milestone references."]
["4) Insert the relevant number in the \"Milestone reference\" column (i.e. MM1)."]
[]
[]
[]
[]
[null,{"$f":"IF(SUM(B8,B11:B19)=SUM(A8,A11:A19),0,1)","v":1},{"$f":"IF(SUM(C8,C11:C19)=SUM(B8,B11:B19),0,1)","v":1},1,0,0,0,0,0,0,0,0,0,0,0,0,0,0,0,0,0,0,0,0,0,0,0,0,0]

{"sheet":"IA2 Wallanbah Void","index":12,"n_rows":27,"n_cols":29,"rows_kept":27,"cut":false,"hidden":false,"merged":[[3,0,3,3],[3,4,3,10],[0,0,0,10],[1,0,1,3],[1,4,1,10],[2,0,2,3],[2,4,2,10],[19,0,19,10],[20,0,20,10],[21,0,21,10],[4,0,4,3],[4,4,4,10],[5,0,5,3],[5,4,5,10],[9,1,9,10],[18,0,18,10]]}
["Non-use management area (NUMA)"]
["Improvement area",null,null,null,"IA2"]
["Relevant activities",null,null,null,"Wallanbah Void"]
["Total size (ha)",null,null,null,39.1]
["Commencement of first milestone: \nMM1",null,null,null,"2022-06-10"]
["NUMA",null,null,null,"Non Use Management Area associated with Pit Void"]
["Date area is available","2022-06-10"]
["Cumulative area available (ha)",{"$f":"E4","v":39.1}]
["Milestone completed by","2025-12-10","2042-12-10"]
["Milestone Reference","Cumulative area achieved (ha)"]
["MM1",39.1]
["MM2",39.1]
["MM3",null,39.1]
[]
[]
[]
[]
[]
["1) Insert new columns to the yellow table to include further management milestone dates."]
["2) Insert new columns to the blue table to match management milestone dates."]
["3) Insert new rows to the blue table to include additional management milestone references."]
["4) Insert the relevant number in the \"Milestone reference\" column (i.e. MM1)."]
[]
[]
[]
[]
[null,{"$f":"IF(SUM(B8,B11:B19)=SUM(A8,A11:A19),0,1)","v":1},{"$f":"IF(SUM(C8,C11:C19)=SUM(B8,B11:B19),0,1)","v":1},1,0,0,0,0,0,0,0,0,0,0,0,0,0,0,0,0,0,0,0,0,0,0,0,0,0]

{"sheet":"IA3 Wallanbah Void Lowwall","index":13,"n_rows":27,"n_cols":29,"rows_kept":27,"cut":false,"hidden":false,"merged":[[3,0,3,3],[3,4,3,10],[0,0,0,10],[1,0,1,3],[1,4,1,10],[2,0,2,3],[2,4,2,10],[19,0,19,10],[20,0,20,10],[21,0,21,10],[4,0,4,3],[4,4,4,10],[5,0,5,3],[5,4,5,10],[9,1,9,10],[18,0,18,10]]}
["Non-use management area (NUMA)"]
["Improvement area",null,null,null,"IA3"]
["Relevant activities",null,null,null,"Wallanbah Void Lowwall"]
["Total size (ha)",null,null,null,24.2]
["Commencement of first milestone: \nMM1",null,null,null,"2022-06-10"]
["NUMA",null,null,null,"Non Use Management Area associated with Pit Void"]
["Date area is available","2022-06-10"]
["Cumulative area available (ha)",{"$f":"E4","v":24.2}]
["Milestone completed by","2025-12-10","2026-12-10","2027-12-10","2028-12-10","2029-12-10","2042-12-10"]
["Milestone Reference","Cumulative area achieved (ha)"]
["MM1",6.8,14.3,21.8,24.2]
["MM2",{"$nulls":4},24.2]
["MM3",{"$nulls":5},24.2]
[]
[]
[]
[]
[]
["1) Insert new columns to the yellow table to include further management milestone dates."]
["2) Insert new columns to the blue table to match management milestone dates."]
["3) Insert new rows to the blue table to include additional management milestone references."]
["4) Insert the relevant number in the \"Milestone reference\" column (i.e. MM1)."]
[]
[]
[]
[]
[null,{"$f":"IF(SUM(B8,B11:B19)=SUM(A8,A11:A19),0,1)","v":1},{"$f":"IF(SUM(C8,C11:C19)=SUM(B8,B11:B19),0,1)","v":1},1,1,0,0,1,0,0,0,0,0,0,0,0,0,0,0,0,0,0,0,0,0,0,0,0,0]

{"sheet":"IA4 Bullock Ck Void","index":14,"n_rows":27,"n_cols":29,"rows_kept":27,"cut":false,"hidden":false,"merged":[[3,0,3,3],[3,4,3,10],[0,0,0,10],[1,0,1,3],[1,4,1,10],[2,0,2,3],[2,4,2,10],[19,0,19,10],[20,0,20,10],[21,0,21,10],[4,0,4,3],[4,4,4,10],[5,0,5,3],[5,4,5,10],[9,1,9,10],[18,0,18,10]]}
["Non-use management area (NUMA)"]
["Improvement area",null,null,null,"IA4"]
["Relevant activities",null,null,null,"Bullock Ck Void"]
["Total size (ha)",null,null,null,28.1]
["Commencement of first milestone: \nMM1",null,null,null,"2022-06-10"]
["NUMA",null,null,null,"Non Use Management Area associated with Pit Void"]
["Date area is available","2022-06-10"]
["Cumulative area available (ha)",{"$f":"E4","v":28.1}]
["Milestone completed by","2024-12-10","2042-12-10"]
["Milestone Reference","Cumulative area achieved (ha)"]
["MM1",28.1]
["MM2",28.1]
["MM3",null,28.1]
[]
[]
[]
[]
[]
["1) Insert new columns to the yellow table to include further management milestone dates."]
["2) Insert new columns to the blue table to match management milestone dates."]
["3) Insert new rows to the blue table to include additional management milestone references."]
["4) Insert the relevant number in the \"Milestone reference\" column (i.e. MM1)."]
[]
[]
[]
[]
[null,{"$f":"IF(SUM(B8,B11:B19)=SUM(A8,A11:A19),0,1)","v":1},{"$f":"IF(SUM(C8,C11:C19)=SUM(B8,B11:B19),0,1)","v":1},1,0,0,0,0,0,0,0,0,0,0,0,0,0,0,0,0,0,0,0,0,0,0,0,0,0]

{"sheet":"IA5 Plumtree Void","index":15,"n_rows":27,"n_cols":29,"rows_kept":27,"cut":false,"hidden":false,"merged":[[3,0,3,3],[3,4,3,10],[0,0,0,10],[1,0,1,3],[1,4,1,10],[2,0,2,3],[2,4,2,10],[19,0,19,10],[20,0,20,10],[21,0,21,10],[4,0,4,3],[4,4,4,10],[5,0,5,3],[5,4,5,10],[9,1,9,10],[18,0,18,10]]}
["Non-use management area (NUMA)"]
["Improvement area",null,null,null,"IA5"]
["Relevant activities",null,null,null,"Plumtree Void"]
["Total size (ha)",null,null,null,75.400000000000006]
["Commencement of first milestone: \nMM1",null,null,null,"2022-06-10"]
["NUMA",null,null,null,"Non Use Management Area associated with Pit Void"]
["Date area is available","2022-06-10"]
["Cumulative area available (ha)",{"$f":"E4","v":75.400000000000006}]
["Milestone completed by","2024-12-10","2042-12-10"]
["Milestone Reference","Cumulative area achieved (ha)"]
["MM1",75.400000000000006]
["MM2",75.400000000000006]
["MM3",null,75.400000000000006]
[]
[]
[]
[]
[]
["1) Insert new columns to the yellow table to include further management milestone dates."]
["2) Insert new columns to the blue table to match management milestone dates."]
["3) Insert new rows to the blue table to include additional management milestone references."]
["4) Insert the relevant number in the \"Milestone reference\" column (i.e. MM1)."]
[]
[]
[]
[]
[null,{"$f":"IF(SUM(B8,B11:B19)=SUM(A8,A11:A19),0,1)","v":1},{"$f":"IF(SUM(C8,C11:C19)=SUM(B8,B11:B19),0,1)","v":1},1,0,0,0,0,0,0,0,0,0,0,0,0,0,0,0,0,0,0,0,0,0,0,0,0,0]

{"sheet":"Rehabilitation Area Milestones","index":16,"n_rows":26,"n_cols":3,"rows_kept":26,"cut":false,"hidden":false,"merged":[[14,0,14,2],[15,0,15,2],[16,0,16,2]]}
["Milestone reference","Rehabilitation milestone","Milestone criteria"]
["RM1","Infrastructure decommissioning and removal","• All site services disconnected and decommissioned;\n• All road materials (bitumen and gravel) removed;\n• All above ground pipelines drained and removed;\n• All fencing not required by a subsequent landholder is removed;\n• All buildings not required by a subsequent landholder demolished and removed; and\n• All drillholes, sumps, exploration tracks and gridlines decommissioned."]
["RM2","Remediation of contaminated land","• Carry out preliminary and intrusive contaminated land investigations;\n• Removal or on-site treatment of contaminated water;\n• Removal or on-site treatment of contaminated material;\n• Conduct validation testing to confirm that contaminated water / materials have been removed/remediated; and\n• Certification from an appropriately qualified person (AQP) that all contaminated land has been remediated or removed and disposed of according to licence conditions."]
["RM3","Landform development and reshaping / re-profiling","• Finalise engineering and design plans; \n• Bulk earthworks to achieve required landform and slopes; \n• General reshaping and pushing/trimming to achieve final landform;\n• Slope of constructed landforms is ≤20% in at least 80% of the nominated area and verified by an AQP;\n• Final highwall/end wall batters of voids meet EA requirements and verified by an AQP;\n• Sediment and mine water dams not required for sediment control or by a subsequent landholder are desilted and backfilled using their embankments; and\n• Install erosion and sediment control systems."]
["RM4","Surface preparation","• Remediate excessive erosion or subsidence;\n• An assessment of soil health and suitability has been completed by an AQP to confirm soil is suitable for target vegetation establishment;\n• Application of ameliorants as per requirements of the soil health and suitability assessment;\n• Deep ripping of compacted areas; and\n• Placement of 0.2 metres (m) of soil."]
["RM5","Revegetation (grazing with areas of bushland habitat)","• Completed seeding of target species at rate consistent with the revegetation plan;\n• Application of fertiliser as per requirements of the soil health and suitability assessment; and\n• Deep ripping along the contour on slopes."]
["RM6","Revegetation (self-sustaining native vegetation and riparian)","• Completed seeding of target species at rate consistent with the revegetation plan;\n• Application of fertiliser as per requirements of the soil health and suitability assessment;\n• Planting of tubestock; and\n• Install stock fencing to protect planting where required."]
["RM7","Achievement of surface requirements (riparian)","• No active areas of gully erosion; and\n• Certification from an AQP that weed and pest species are no greater than the nominated reference sites."]
["RM8","Achievement of surface requirements (grazing with areas of bushland habitat)","• 80% of the nominated area has an average groundcover (consisting of standing live vegetation, attached litter, detached litter, rocks >5 cm and course woody debris) ≥70% as verified by an AQP;\n• No active areas of gully erosion and drainage follows appropriate drainage paths;\n• Certification from an AQP that weed and pest species are no greater than the nominated reference sites;\n• Water control structures are either removed or are free from active erosion as verified by an AQP;\n• Average erosion rate of ≤5 t/ha/yr;\n• Erosion gullies are less than or equal to 1m deep; and\n• Certification form an AQP that rehabilitation is resilient to fire."]
["RM9","Achievement of surface requirements (self-sustaining native vegetation)","• No active areas of gully erosion; and\n• Certification from an AQP that weed and pest species are no greater than the nominated reference sites."]
["RM10","Achievement of PMLU to a stable condition (grazing with areas of bushland habitat)","• Certification from an AQP that the area has achieved stable condition;\n• Certification from an AQP that the landform has achieved an acceptable factor of safety;\n• Average erosion rate of ≤5 t/ha/yr;\n• 80% of the nominated area has an average groundcover (consisting of standing live vegetation, attached litter, detached litter, rocks >5 cm and course woody debris) ≥70% as verified by an AQP;\n• Biomass and cattle grazing indicators meet a minimum land suitability class of 4 and a minimum land capability class of VII as verified by an AQP;\n\nSurface water runoff quality from the area complies with the following:\n• pH is between 6.5 and 9.0;\n• EC is 20th of downstream monitoring points and 80th percentile of upstream monitoring points;\n• suspended solids are <1,000mg/L;\n• sulfate is 20th of downstream monitoring points and 80th percentile of upstream monitoring points\n• chromium is <1 μg/L;\n• copper is <2 μg/L;\n• zinc is <8 μg/L;\n• selenium is <10 μg/L;\n• uranium is <1 μg/L;\n• nitrate is <1,100 μg/L;\n• petroleum hydrocarbons (C6-C9) is <20 μg/L;\n• petroleum hydrocarbons (C10-C36) is <100 μg/L;\n• sodium is <180 mg/L;\n• barium is <2,000 μg/L.\nGroundwater pH and electrical conductivity (EC) does not show a statistically significant change when compared to background data for a period of five years prior to relinquishment."]
["RM11","Achievement of PMLU to a stable condition (riparian and self-sustaining native vegetation)","• Certification from an AQP that the area has achieved a stable condition;\n• Certification from an AQP that the self-sustaining vegetation areas are consistent with reference site BAS-NAT-02 based on BioCondition monitoring; and\n• Certification from an AQP that riparian areas are consistent with reference sites based on BioCondition monitoring."]
[]
[]
["1) Insert new rows below the table to record more Rehabilitation Area Milestones for the project"]
["2) Ensure all Rehabilitation Milestones recorded in this table align with those included in the RA sheets in this form."]
["3) See the PRCP guideline before developing site-specific Rehabilitation Area Milestones"]
[]
["1Appropriately qualified person (AQP) means, a person who has the professional qualifications, training, skills or experience relevant to the nominated subject matter and can give authoritative assessment, advice and analysis on performance relative to the subject matter using the relevant protocols, standards, methods or literature."]
["2Invasive plants are restricted matters as defined by the Biosecurity Act 2014."]
["3Active erosion means, one or both of the following conditions apply:"]
["(a)       evidence of sediment movement;"]
["(b)      sides and/or floors of erosion form are relatively bare of vegetation."]
["4NEPM assessment means an assessment completed under The National Environmental Protection (Assessment of Site Contamination) Measure 1999 for contaminated land."]
["5DSITI & DNRM (2015). Guidelines for agricultural land evaluation in Queensland (2nd edn.). Queensland Government (Department of Science, Information Technology and Innovation and Department of Natural Resources and Mines), Brisbane, Queensland."]
["6 Target woodland vegetation species are Eucalyptus cambageana, Acacia harpophylla and Eucalyptus populnea associated with Regional Ecosystems 11.4.8, 11.4.9 and 11.5.3."]

{"sheet":"COD Improvement Area Milestones","index":17,"n_rows":16,"n_cols":3,"rows_kept":16,"cut":false,"hidden":false,"merged":[[13,0,13,2],[14,0,14,2],[15,0,15,2]]}
["Milestone reference","Management milestone","Milestone criteria"]
["MM1","Wall treatments","a) walls / slopes assessed as stable by an appropriately qualified person (AQP) (geotechnical engineer) and consistent with EA conditions."]
["MM2","Achievement of surface requirements / access controls","a) safety bund setback distance is in accordance with calculated geotechnical factor of safety;\nb) safety bund constructed at 2m high, base width of 14m and 1:3 batters;\nc) fencing installed at nominated offset from safety bund (nominally a four-strand barbed stock fence); and\nd) safety signage (design in accordance with Australian Standard) is erected at specified intervals along the fence.\n"]
["MM3","Achievement of sufficient improvement","a) certification from an appropriately qualified person that the residual void will not cause environmental harm outside of the relevant tenure boundary;\nb) certification from an appropriately qualified person that the residual void is safe to humans and livestock;\nc) certification from an appropriately qualified person that the water level and quality in the void will not cause environmental harm to the surrounding environment; and\nd) regraded slopes with minimum 70% vegetation cover."]
["MM4"]
["MM5"]
["MM6"]
["MM7"]
["MM8"]
["MM9"]
["MM10"]
[]
[]
["1) Insert new rows below the table to record more Improvement Area Milestones for the project"]
["2) Ensure all Management Milestones recorded in this table align with those included in the IA sheets in this form."]
["3) See the PRCP guideline before developing site-specific Improvement Area Milestones"]